fUST/lending_fUST_20260114
["ID","MTS","AMOUNT","RATE_DAILY","PERIOD"]
[401846494,1768385454661,-151.0,0.00021918,2]
[401846495,1768385454671,-237.361203,0.00021918,2]
[401846496,1768385454680,-151.0,0.00021918,2]
[401846497,1768385454690,-237.361203,0.00021918,2]
[401846498,1768385454699,-174.464097,0.00021918,2]
[401846499,1768385454708,-237.361203,0.00021918,2]
[401846500,1768385454718,-275.55471384,0.00021918,2]
[401846501,1768385454727,-151.0,0.00021918,2]
[401846502,1768385454736,-151.0,0.00021918,2]
[401846503,1768385454745,-151.0,0.00021918,2]
[401846504,1768385454755,-151.0,0.00021918,2]
[401846505,1768385454764,-151.0,0.00021918,2]
[401846506,1768385454773,-151.0,0.00021918,2]
[401846507,1768385454783,-151.0,0.00021918,2]
[401846508,1768385454792,-151.0,0.00021918,2]
[401846509,1768385454801,-151.0,0.00021918,2]
[401846510,1768385454810,-155.398666,0.00021918,2]
[401846511,1768385454819,-151.0,0.00021918,2]
[401846512,1768385454828,-151.0,0.00021918,2]
[401846513,1768385454837,-151.0,0.00021918,2]
[401846514,1768385454846,-151.0,0.00021918,2]
[401846515,1768385454855,-151.0,0.00021918,2]
[401846516,1768385454865,-151.0,0.00021918,2]
[401846517,1768385454875,-151.0,0.00021918,2]
[401846518,1768385454885,-151.0,0.00021918,2]
[401846519,1768385454894,-151.0,0.00021918,2]
[401846520,1768385454904,-151.0,0.00021918,2]
[401846521,1768385454914,-151.0,0.00021918,2]
[401846522,1768385454925,-151.0,0.00021918,2]
[401846523,1768385454935,-151.0,0.00021918,2]
[401846524,1768385454945,-151.0,0.00021918,2]
[401846525,1768385454955,-151.0,0.00021918,2]
[401846526,1768385454964,-151.0,0.00021918,2]
[401846527,1768385454975,-151.0,0.00021918,2]
[401846528,1768385454985,-151.0,0.00021918,2]
[401846529,1768385454995,-151.0,0.00021918,2]
[401846530,1768385455005,-195.880562,0.00021918,2]
[401846531,1768385455015,-230.012904,0.00021918,2]
[401846532,1768385455025,-151.0,0.00021918,2]
[401846533,1768385455035,-151.0,0.00021918,2]
[401846534,1768385455045,-287.20957,0.00021918,2]
[401846535,1768385455058,-2297.615063,0.00021918,2]
[401846536,1768385455067,-2297.615063,0.00021918,2]
[401846537,1768385455077,-2297.615063,0.00021918,2]
[401846538,1768385455086,-2297.615063,0.00021918,2]
[401846539,1768385455097,-2297.615063,0.00021918,2]
[401846540,1768385455107,-151.0,0.00021918,2]
[401846541,1768385455116,-2297.615063,0.00021918,2]
[401846542,1768385455128,-257.762103,0.00021918,2]
[401846543,1768385455138,-2297.615063,0.00021918,2]
[401846544,1768385455147,-2297.615063,0.00021918,2]
[401846545,1768385455156,-2297.615063,0.00021918,2]
[401846546,1768385455166,-2297.615063,0.00021918,2]
[401846547,1768385455175,-2297.615063,0.00021918,2]
[401846548,1768385455187,-2297.615063,0.00021918,2]
[401846549,1768385455196,-2297.615063,0.00021918,2]
[401846550,1768385455206,-2297.615063,0.00021918,2]
[401846551,1768385455216,-2297.615063,0.00021918,2]
[401846552,1768385455225,-2297.615063,0.00021918,2]
[401846553,1768385455234,-151.0,0.00021918,2]
[401846554,1768385455244,-151.0,0.00021918,2]
[401846555,1768385455253,-151.0,0.00021918,2]
[401846556,1768385455263,-151.0,0.00021918,2]
[401846557,1768385455273,-151.0,0.00021918,2]
[401846558,1768385455282,-151.0,0.00021918,2]
[401846559,1768385455291,-151.0,0.00021918,2]
[401846560,1768385455301,-174.762568,0.00021918,2]
[401846561,1768385455310,-174.038823,0.00021918,2]
[401846562,1768385455319,-174.038823,0.00021918,2]
[401846563,1768385455328,-174.038823,0.00021918,2]
[401846564,1768385455338,-174.038823,0.00021918,2]
[401846565,1768385455347,-174.038823,0.00021918,2]
[401846566,1768385455357,-174.038823,0.00021918,2]
[401846567,1768385455368,-174.038823,0.00021918,2]
[401846568,1768385455377,-174.038823,0.00021918,2]
[401846569,1768385455386,-174.038823,0.00021918,2]
[401846570,1768385455396,-174.038823,0.00021918,2]
[401846571,1768385455405,-174.038823,0.00021918,2]
[401846572,1768385455414,-174.038823,0.00021918,2]
[401846573,1768385455423,-174.038823,0.00021918,2]
[401846574,1768385455433,-367.716315,0.00021918,2]
[401846575,1768385455442,-174.038823,0.00021918,2]
[401846576,1768385455452,-367.716315,0.00021918,2]
[401846577,1768385455462,-174.038823,0.00021918,2]
[401846578,1768385455472,-367.716315,0.00021918,2]
[401846579,1768385455482,-174.038823,0.00021918,2]
[401846580,1768385455492,-367.716315,0.00021918,2]
[401846581,1768385455502,-367.716315,0.00021918,2]
[401846582,1768385455511,-367.716315,0.00021918,2]
[401846583,1768385455521,-367.716315,0.00021918,2]
[401846584,1768385455531,-367.716315,0.00021918,2]
[401846585,1768385455540,-367.716315,0.00021918,2]
[401846586,1768385455549,-367.716315,0.00021918,2]
[401846587,1768385455559,-367.716315,0.00021918,2]
[401846588,1768385455568,-367.716315,0.00021918,2]
[401846589,1768385455578,-367.716315,0.00021918,2]
[401846590,1768385455587,-367.716315,0.00021918,2]
[401846591,1768385455597,-367.716315,0.00021918,2]
[401846592,1768385455607,-367.716315,0.00021918,2]
[401846593,1768385455616,-713.676767,0.00021918,2]
[401846594,1768385455626,-713.676767,0.00021918,2]
[401846595,1768385455638,-713.676767,0.00021918,2]
[401846596,1768385455648,-713.676767,0.00021918,2]
[401846597,1768385455657,-713.676767,0.00021918,2]
[401846598,1768385455668,-713.676767,0.00021918,2]
[401846599,1768385455678,-713.676767,0.00021918,2]
[401846600,1768385455687,-713.676767,0.00021918,2]
[401846601,1768385455696,-713.676767,0.00021918,2]
[401846602,1768385455705,-713.676767,0.00021918,2]
[401846603,1768385455715,-713.676767,0.00021918,2]
[401846604,1768385455724,-713.676767,0.00021918,2]
[401846605,1768385455735,-713.676767,0.00021918,2]
[401846606,1768385455745,-713.676767,0.00021918,2]
[401846607,1768385455756,-713.676767,0.00021918,2]
[401846608,1768385455765,-713.676767,0.00021918,2]
[401846609,1768385455775,-713.676767,0.00021918,2]
[401846610,1768385455784,-713.676767,0.00021918,2]
[401846611,1768385455793,-713.676767,0.00021918,2]
[401846612,1768385455803,-713.676769,0.00021918,2]
[401846613,1768385455812,-151.0,0.00021918,2]
[401846614,1768385455821,-225.938304,0.00021918,2]
[401846615,1768385455831,-151.0,0.00021918,2]
[401846616,1768385455840,-151.0,0.00021918,2]
[401846617,1768385455850,-151.0,0.00021918,2]
[401846618,1768385455859,-151.0,0.00021918,2]
[401846619,1768385455868,-151.0,0.00021918,2]
[401846620,1768385455877,-151.0,0.00021918,2]
[401846621,1768385455886,-151.0,0.00021918,2]
[401846622,1768385455895,-151.0,0.00021918,2]
[401846623,1768385455906,-151.0,0.00021918,2]
[401846624,1768385455916,-151.0,0.00021918,2]
[401846625,1768385455925,-171.876779,0.00021918,2]
[401846626,1768385455935,-151.0,0.00021918,2]
[401846627,1768385455944,-151.0,0.00021918,2]
[401846628,1768385455953,-151.0,0.00021918,2]
[401846629,1768385455963,-151.0,0.00021918,2]
[401846630,1768385455972,-151.0,0.00021918,2]
[401846631,1768385455981,-151.0,0.00021918,2]
[401846632,1768385455990,-151.0,0.00021918,2]
[401846633,1768385455999,-151.0,0.00021918,2]
[401846634,1768385456009,-151.0,0.00021918,2]
[401846635,1768385456019,-151.0,0.00021918,2]
[401846636,1768385456028,-151.0,0.00021918,2]
[401846637,1768385456037,-240.635546,0.00021918,2]
[401846638,1768385456047,-151.0,0.00021918,2]
[401846639,1768385456059,-151.0,0.00021918,2]
[401846640,1768385456068,-151.0,0.00021918,2]
[401846641,1768385456076,-151.0,0.00021918,2]
[401846642,1768385456156,-151.0,0.00021918,2]
[401846643,1768385456174,-151.0,0.00021918,2]
[401846644,1768385456185,-151.0,0.00021918,2]
[401846645,1768385456195,-151.0,0.00021918,2]
[401846646,1768385456206,-151.0,0.00021918,2]
[401846647,1768385456215,-151.0,0.00021918,2]
[401846648,1768385456225,-151.0,0.00021918,2]
[401846649,1768385456234,-285.638493,0.00021918,2]
[401846650,1768385456244,-151.0,0.00021918,2]
[401846651,1768385456255,-151.0,0.00021918,2]
[401846652,1768385456265,-151.0,0.00021918,2]
[401846653,1768385456274,-151.0,0.00021918,2]
[401846654,1768385456283,-151.0,0.00021918,2]
[401846655,1768385456292,-151.0,0.00021918,2]
[401846656,1768385456302,-151.0,0.00021918,2]
[401846657,1768385456311,-151.0,0.00021918,2]
[401846658,1768385456321,-157.2766,0.00021918,2]
[401846659,1768385456330,-151.0,0.00021918,2]
[401846660,1768385456339,-151.0,0.00021918,2]
[401846661,1768385456349,-151.0,0.00021918,2]
[401846662,1768385456359,-151.0,0.00021918,2]
[401846663,1768385456368,-151.0,0.00021918,2]
[401846664,1768385456376,-151.0,0.00021918,2]
[401846665,1768385456385,-151.0,0.00021918,2]
[401846666,1768385456394,-151.0,0.00021918,2]
[401846667,1768385456403,-151.0,0.00021918,2]
[401846668,1768385456411,-151.0,0.00021918,2]
[401846669,1768385456420,-151.0,0.00021918,2]
[401846670,1768385456429,-151.0,0.00021918,2]
[401846671,1768385456437,-285.163634,0.00021918,2]
[401846672,1768385456446,-151.0,0.00021918,2]
[401846673,1768385456454,-151.0,0.00021918,2]
[401846674,1768385456463,-1517.512581,0.00021918,2]
[401846675,1768385456472,-1200.0,0.00021918,2]
[401846676,1768385456481,-8000.0,0.00021918,2]
[401846677,1768385456491,-650.0,0.00021918,2]
[401846678,1768385456500,-151.000021,0.00021918,2]
[401846679,1768385456508,-151.0,0.00021918,2]
[401846680,1768385456517,-151.0,0.00021918,2]
[401846681,1768385456526,-151.0,0.00021918,2]
[401846682,1768385456534,-151.0,0.00021918,2]
[401846683,1768385456543,-151.0,0.00021918,2]
[401846684,1768385456551,-151.0,0.00021918,2]
[401846685,1768385456560,-151.0,0.00021918,2]
[401846686,1768385456569,-2297.615063,0.00021918,2]
[401846687,1768385456578,-2297.615063,0.00021918,2]
[401846688,1768385456586,-2297.615063,0.00021918,2]
[401846689,1768385456595,-2297.615059,0.00021918,2]
[401846690,1768385456604,-151.0,0.00021918,2]
[401846691,1768385456613,-174.038823,0.00021918,2]
[401846692,1768385456621,-174.038823,0.00021918,2]
[401846693,1768385456630,-174.038823,0.00021918,2]
[401846694,1768385456639,-174.038821,0.00021918,2]
[401846695,1768385456648,-367.716315,0.00021918,2]
[401846696,1768385456657,-367.716315,0.00021918,2]
[401846697,1768385456666,-367.716315,0.00021918,2]
[401846698,1768385456674,-367.71631,0.00021918,2]
[401846699,1768385456683,-151.0,0.00021918,2]
[401846700,1768385456692,-279.449263,0.00021918,2]
[401846701,1768385456701,-151.0,0.00021918,2]
[401846702,1768385456711,-151.0,0.00022,9]
[401846703,1768385456720,-2222.24,0.00022,7]
[401846704,1768385456729,-316.46,0.000221,7]
[401846705,1768385456738,-5150.59,0.000221,14]
[401846706,1768385456747,-316.42,0.000221,7]
[401846707,1768385456756,-151.0,0.000221,2]
[401846708,1768385456765,-154.230394,0.000221,2]
[401846709,1768385456773,-40340.44,0.000221,2]
[401846710,1768385456782,-151.0,0.000221,2]
[401846711,1768385456791,-151.0,0.000221,2]
[401846712,1768385456801,-369.592925,0.000221,2]
[401846713,1768385456810,-369.592925,0.000221,2]
[401846714,1768385456818,-369.592925,0.000221,2]
[401846715,1768385456827,-369.592925,0.000221,2]
[401846716,1768385456837,-382.165336,0.00022277,2]
[401846717,1768385456845,-216.477356,0.00022277,2]
[401846718,1768385456854,-382.165336,0.00022277,2]
[401846719,1768385456863,-216.477356,0.00022277,2]
[401846720,1768385456872,-971.7,0.00022277,2]
[401846721,1768385456881,-382.165336,0.00022277,2]
[401846722,1768385456890,-216.477356,0.00022277,2]
[401846723,1768385456900,-382.165333,0.00022277,2]
[401846724,1768385456909,-216.477355,0.00022277,2]
[401846725,1768385456918,-666.883218,0.00022277,2]
[401846726,1768385456927,-666.883218,0.00022277,2]
[401846727,1768385456936,-666.883218,0.00022277,2]
[401846728,1768385456945,-666.88322,0.00022277,2]
[401846729,1768385456954,-894.119727,0.00022277,2]
[401846730,1768385456963,-894.119727,0.00022277,2]
[401846731,1768385456973,-894.119727,0.00022277,2]
[401846732,1768385456982,-894.119728,0.00022277,2]
[401846733,1768385456991,-879.438014,0.00022334,2]
[401846734,1768385457000,-879.438014,0.00022334,2]
[401846735,1768385457010,-879.438014,0.00022334,2]
[401846736,1768385457019,-879.438023,0.00022334,2]
[401846737,1768385457028,-1174.88548648,0.00022347,19]
[401846738,1768385457037,-200.0,0.00022466,2]
[401846739,1768385457048,-300.0,0.00022466,2]
[401846740,1768385457058,-1864.52541442,0.00022466,2]
[401846741,1768385457067,-750.0,0.00022466,2]
[401846742,1768385457076,-167.77,0.000225,7]
[401846743,1768385457086,-289.89437104,0.00022561,56]
[401846744,1768385457095,-728.0,0.00022585,3]
[401846745,1768385457105,-728.0,0.0002288,3]
[401846746,1768385457114,-972.98,0.000229,2]
[401846747,1768385457125,-2000.0,0.00022904,7]
[401846748,1768385457135,-1765.37649431,0.00022966,2]
[401846749,1768385457144,-1041.66666667,0.00023,3]
[401846750,1768385457154,-1400.0,0.00023014,2]
[401846751,1768385457163,-250.0,0.00023014,2]
[401846752,1768385457173,-450.0,0.00023014,2]
[401846753,1768385457183,-850.0,0.00023014,2]
[401846754,1768385457192,-274.728875,0.00023014,2]
[401846755,1768385457201,-490.347103,0.00023014,2]
[401846756,1768385457210,-490.347103,0.00023014,2]
[401846757,1768385457219,-490.347103,0.00023014,2]
[401846758,1768385457228,-490.347103,0.00023014,2]
[401846759,1768385457238,-490.971226,0.00023014,2]
[401846760,1768385457246,-490.971226,0.00023014,2]
[401846761,1768385457256,-490.971226,0.00023014,2]
[401846762,1768385457265,-490.971226,0.00023014,2]
[401846763,1768385457275,-505.094065,0.00023014,2]
[401846764,1768385457284,-505.094065,0.00023014,2]
[401846765,1768385457293,-505.094065,0.00023014,2]
[401846766,1768385457302,-505.094065,0.00023014,2]
[401846767,1768385457311,-487.891031,0.00023014,2]
[401846768,1768385457319,-487.891031,0.00023014,2]
[401846769,1768385457328,-487.891031,0.00023014,2]
[401846770,1768385457337,-487.891031,0.00023014,2]
[401846771,1768385457346,-431.74536,0.00023014,2]
[401846772,1768385457356,-431.74536,0.00023014,2]
[401846773,1768385457365,-431.74536,0.00023014,2]
[401846774,1768385457374,-431.745353,0.00023014,2]
[401846775,1768385457383,-3688.352014,0.00023014,2]
[401846776,1768385457392,-3688.352014,0.00023014,2]
[401846777,1768385457401,-3688.352014,0.00023014,2]
[401846778,1768385457410,-3688.352009,0.00023014,2]
[401846779,1768385457419,-237.361203,0.00023014,2]
[401846780,1768385457428,-237.361203,0.00023014,2]
[401846781,1768385457436,-237.361203,0.00023014,2]
[401846782,1768385457446,-237.361205,0.00023014,2]
[401846783,1768385457455,-728.0,0.0002312,3]
[401846784,1768385457464,-500.0,0.00023143,2]
[401846785,1768385457473,-182.95072115,0.0002315,2]
[401846786,1768385457482,-800.0,0.00023226,2]
[401846787,1768385457491,-800.0,0.00023238,2]
[401846788,1768385457499,-1700.0,0.00023245,2]
[401846789,1768385457509,-500.0,0.00023284,2]
[401846790,1768385457596,-800.0,0.00023303,2]
[401846791,1768385457605,-1174.88548648,0.00023341,21]
[401846792,1768385457614,-1000.0,0.00023371,2]
[401846793,1768385457623,-1700.0,0.0002344,2]
[401846794,1768385457633,-1700.0,0.00023466,2]
[401846795,1768385457642,-1000.0,0.00023473,2]
[401846796,1768385457651,-1000.0,0.00023503,2]
[401846797,1768385457660,-1000.0,0.0002354,2]
[401846798,1768385457669,-210.92385342,0.00023562,2]
[401846799,1768385457678,-600.0,0.00023562,2]
[401846800,1768385457688,-950.0,0.00023562,2]
[401846801,1768385457697,-1000.0,0.00023566,2]
[401846802,1768385457705,-500.0,0.00023569,2]
[401846803,1768385457715,-1000.0,0.0002363,2]
[401846804,1768385457723,-800.0,0.00023673,2]
[401846805,1768385457732,-151.0,0.000237,10]
[401846806,1768385457741,-2222.24,0.000237,7]
[401846807,1768385457750,-800.0,0.000237,2]
[401846808,1768385457759,-971.7,0.00023736,2]
[401846809,1768385457768,-800.0,0.00023744,2]
[401846810,1768385457778,-1000.0,0.00023759,2]
[401846811,1768385457786,-1000.0,0.00023799,2]
[401846812,1768385457797,-1700.0,0.0002386,2]
[401846813,1768385457806,-500.0,0.00023884,2]
[401846814,1768385457815,-1041.66666667,0.00024,7]
[401846815,1768385457824,-40340.44,0.00024,2]
[401846816,1768385457833,-1024.9030344,0.00024,2]
[401846817,1768385457842,-1000.0,0.00024012,10]
[401846818,1768385457851,-1000.0,0.00024012,10]
[401846819,1768385457860,-1000.0,0.00024012,10]
[401846820,1768385457869,-715.0,0.00024012,10]
[401846821,1768385457878,-1000.0,0.00024052,2]
[401846822,1768385457887,-901.46550708,0.00024056,2]
[401846823,1768385457897,-500.0,0.00024078,2]
[401846824,1768385457906,-584812.0,0.000241,7]
[401846825,1768385457915,-255.526264,0.000241,2]
[401846826,1768385457924,-151.0,0.000241,2]
[401846827,1768385457933,-151.0,0.000241,2]
[401846828,1768385457942,-561.150045,0.000241,2]
[401846829,1768385457952,-561.150045,0.000241,2]
[401846830,1768385457960,-561.150045,0.000241,2]
[401846831,1768385457969,-561.150045,0.000241,2]
[401846832,1768385457978,-151.0,0.000241,2]
[401846833,1768385457988,-151.0,0.000241,2]
[401846834,1768385457997,-369.592925,0.000241,2]
[401846835,1768385458006,-369.592925,0.000241,2]
[401846836,1768385458015,-369.592925,0.000241,2]
[401846837,1768385458024,-369.592925,0.000241,2]
[401846838,1768385458033,-490.347103,0.000241,2]
[401846839,1768385458043,-490.347103,0.000241,2]
[401846840,1768385458055,-490.347103,0.000241,2]
[401846841,1768385458064,-490.347096,0.000241,2]
[401846842,1768385458073,-490.971226,0.000241,2]
[401846843,1768385458082,-490.971226,0.000241,2]
[401846844,1768385458093,-490.971226,0.000241,2]
[401846845,1768385458102,-490.971216,0.000241,2]
[401846846,1768385458111,-505.094065,0.000241,2]
[401846847,1768385458122,-505.094065,0.000241,2]
[401846848,1768385458131,-505.094065,0.000241,2]
[401846849,1768385458141,-505.094066,0.000241,2]
[401846850,1768385458150,-487.891031,0.000241,2]
[401846851,1768385458159,-487.891031,0.000241,2]
[401846852,1768385458168,-487.891031,0.000241,2]
[401846853,1768385458177,-487.891039,0.000241,2]
[401846854,1768385458186,-633.419635,0.000241,2]
[401846855,1768385458195,-633.419635,0.000241,2]
[401846856,1768385458205,-633.419635,0.000241,2]
[401846857,1768385458214,-633.419634,0.000241,2]
[401846858,1768385458224,-424.867584,0.000241,2]
[401846859,1768385458233,-424.867584,0.000241,2]
[401846860,1768385458243,-424.867584,0.000241,2]
[401846861,1768385458253,-424.867583,0.000241,2]
[401846862,1768385458262,-151.0,0.000241,2]
[401846863,1768385458271,-800.0,0.00024102,2]
[401846864,1768385458281,-1601.4141805,0.0002411,2]
[401846865,1768385458290,-750.0,0.0002411,2]
[401846866,1768385458300,-1050.0,0.0002411,2]
[401846867,1768385458309,-800.0,0.00024159,2]
[401846868,1768385458319,-1000.0,0.00024161,2]
[401846869,1768385458328,-2000.0,0.00024219,7]
[401846870,1768385458337,-1000.0,0.0002425,2]
[401846871,1768385458346,-293.85068442,0.00024333,2]
[401846872,1768385458355,-1174.88548648,0.00024336,22]
[401846873,1768385458364,-1367.0,0.00024357,2]
[401846874,1768385458373,-629.0,0.00024357,2]
[401846875,1768385458383,-2147.0,0.00024357,2]
[401846876,1768385458392,-417.0,0.00024357,2]
[401846877,1768385458401,-417.0,0.00024357,2]
[401846878,1768385458410,-715.0,0.00024357,2]
[401846879,1768385458419,-178.0,0.00024357,2]
[401846880,1768385458429,-330.0,0.00024413,2]
[401846881,1768385458438,-1700.0,0.00024417,2]
[401846882,1768385458448,-1700.0,0.00024458,2]
[401846883,1768385458457,-500.0,0.00024473,2]
[401846884,1768385458467,-800.0,0.00024482,2]
[401846885,1768385458476,-1000.0,0.00024529,2]
[401846886,1768385458486,-1700.0,0.00024532,2]
[401846887,1768385458496,-800.0,0.00024536,2]
[401846888,1768385458505,-1000.0,0.00024558,2]
[401846889,1768385458515,-1700.0,0.00024619,2]
[401846890,1768385458524,-1700.0,0.00024653,2]
[401846891,1768385458534,-900.0,0.00024658,2]
[401846892,1768385458544,-1150.0,0.00024658,2]
[401846893,1768385458553,-380.0,0.00024658,2]
[401846894,1768385458564,-500.0,0.00024658,2]
[401846895,1768385458573,-316.46,0.000247,7]
[401846896,1768385458583,-5150.59,0.000247,14]
[401846897,1768385458592,-316.42,0.000247,7]
[401846898,1768385458601,-167.77,0.000247,7]
[401846899,1768385458611,-34169.46,0.000247,3]
[401846900,1768385458621,-1700.0,0.00024746,2]
[401846901,1768385458630,-500.0,0.00024795,2]
[401846902,1768385458640,-800.0,0.00024808,2]
[401846903,1768385458650,-269.235719,0.000249,7]
[401846904,1768385458659,-151.0,0.000249,7]
[401846905,1768385458668,-561.150045,0.000249,7]
[401846906,1768385458677,-561.150045,0.000249,7]
[401846907,1768385458687,-561.150045,0.000249,7]
[401846908,1768385458696,-561.150045,0.000249,7]
[401846909,1768385458705,-151.0,0.000249,7]
[401846910,1768385458714,-151.0,0.000249,7]
[401846911,1768385458723,-369.592925,0.000249,7]
[401846912,1768385458733,-369.592925,0.000249,7]
[401846913,1768385458742,-369.592925,0.000249,7]
[401846914,1768385458751,-369.592928,0.000249,7]
[401846915,1768385458761,-653058.728757,0.000249,2]
[401846916,1768385458770,-500.0,0.00024903,2]
[401846917,1768385458780,-800.0,0.00024912,2]
[401846918,1768385458789,-455.0,0.00024932,7]
[401846919,1768385458799,-500.0,0.00024932,2]
[401846920,1768385458809,-1700.0,0.00024935,2]
[401846921,1768385458818,-1895.60918651,0.00024966,2]
[401846922,1768385458827,-500.0,0.00024989,2]
[401846923,1768385458837,-1041.66666667,0.00025,7]
[401846924,1768385458848,-1020.0,0.00025,2]
[401846925,1768385458926,-455.0,0.00025,7]
[401846926,1768385458935,-2944.35746326,0.00025,30]
[401846927,1768385458945,-800.0,0.00025029,7]
[401846928,1768385458954,-500.0,0.00025069,2]
[401846929,1768385458964,-1000.0,0.00025079,7]
[401846930,1768385458973,-222.26879672,0.00025096,14]
[401846931,1768385458982,-700.0,0.000251,7]
[401846932,1768385458992,-1700.0,0.00025113,7]
[401846933,1768385459001,-1000.0,0.0002513,7]
[401846934,1768385459010,-791.34915639,0.0002514,7]
[401846935,1768385459020,-500.0,0.00025154,7]
[401846936,1768385459029,-1000.0,0.00025156,7]
[401846937,1768385459039,-800.0,0.00025175,7]
[401846938,1768385459052,-971.7,0.00025196,2]
[401846939,1768385459061,-2222.24,0.000252,7]
[401846940,1768385459070,-250.0,0.00025205,2]
[401846941,1768385459079,-1186.74681137,0.00025205,2]
[401846942,1768385459090,-1250.0,0.00025205,2]
[401846943,1768385459099,-500.0,0.00025206,2]
[401846944,1768385459109,-22635.35326298,0.00025208,2]
[401846945,1768385459120,-1700.0,0.0002523,7]
[401846946,1768385459130,-800.0,0.0002523,7]
[401846947,1768385459140,-40340.44,0.000253,2]
[401846948,1768385459149,-800.0,0.00025325,7]
[401846949,1768385459158,-1174.88548648,0.0002533,23]
[401846950,1768385459167,-500.0,0.00025343,2]
[401846951,1768385459176,-1000.0,0.00025402,7]
[401846952,1768385459185,-1700.0,0.00025403,7]
[401846953,1768385459194,-1000.0,0.00025424,7]
[401846954,1768385459203,-1700.0,0.00025436,7]
[401846955,1768385459211,-800.0,0.00025446,7]
[401846956,1768385459220,-800.0,0.00025474,7]
[401846957,1768385459231,-500.0,0.0002548,2]
[401846958,1768385459240,-151.0,0.000255,16]
[401846959,1768385459249,-2000.0,0.00025534,7]
[401846960,1768385459258,-1000.0,0.00025537,7]
[401846961,1768385459267,-1000.0,0.00025572,7]
[401846962,1768385459276,-500.0,0.00025617,2]
[401846963,1768385459286,-169.0,0.00025644,14]
[401846964,1768385459295,-1700.0,0.00025652,7]
[401846965,1768385459304,-1700.0,0.00025657,7]
[401846966,1768385459313,-1000.0,0.0002569,7]
[401846967,1768385459322,-350.0,0.00025753,2]
[401846968,1768385459331,-1350.0,0.00025753,2]
[401846969,1768385459340,-500.0,0.00025754,2]
[401846970,1768385459349,-522.88356834,0.00025762,7]
[401846971,1768385459359,-2000.07602471,0.00025768,2]
[401846972,1768385459368,-1041.66666667,0.000258,7]
[401846973,1768385459377,-500.0,0.00025807,7]
[401846974,1768385459387,-455.0,0.0002589,7]
[401846975,1768385459398,-500.0,0.00025891,2]
[401846976,1768385459408,-500.0,0.00025897,7]
[401846977,1768385459418,-500.0,0.00025906,7]
[401846978,1768385459427,-800.0,0.00025911,7]
[401846979,1768385459436,-500.0,0.00025934,7]
[401846980,1768385459445,-500.0,0.00025968,7]
[401846981,1768385459455,-1020.0,0.00026,2]
[401846982,1768385459465,-4840.44,0.00026027,2]
[401846983,1768385459474,-500.0,0.00026028,2]
[401846984,1768385459483,-500.0,0.00026037,7]
[401846985,1768385459493,-800.0,0.0002608,7]
[401846986,1768385459502,-728.0,0.00026135,3]
[401846987,1768385459511,-500.0,0.00026165,2]
[401846988,1768385459520,-1700.0,0.00026183,7]
[401846989,1768385459530,-170.0,0.00026192,14]
[401846990,1768385459539,-190.0,0.00026254,7]
[401846991,1768385459548,-800.0,0.00026291,7]
[401846992,1768385459558,-450.0,0.00026301,2]
[401846993,1768385459568,-1450.0,0.00026301,2]